[Event "Early-Titled-Tuesday-Blitz-February-20-2024"]
[Site "Chess.com"]
[Date "2024.02.20"]
[Round "5"]
[White "Andrey_Klymchuk"]
[Black "Kunalm64"]
[Result "0-1"]
[WhiteElo "2718"]
[BlackElo "2534"]
[TimeControl "180+1"]
[EndTime "8:55:53 PST"]
[Termination "Kunalm64 won by resignation"]

1. d4 {[%clk 0:03:00.9]} 1... Nf6 {[%clk 0:02:59.4]} 2. c4 {[%clk 0:03:00.1]}
2... e6 {[%clk 0:02:59.6]} 3. Nc3 {[%clk 0:02:59.5]} 3... Bb4 {[%clk 0:02:59.3]}
4. e3 {[%clk 0:02:59.4]} 4... O-O {[%clk 0:02:58.6]} 5. Bd3 {[%clk 0:02:59.4]}
5... c5 {[%clk 0:02:58]} 6. Ne2 {[%clk 0:02:58.5]} 6... d5 {[%clk 0:02:53.2]} 7.
a3 {[%clk 0:02:57.7]} 7... dxc4 {[%clk 0:02:51.6]} 8. Bxc4 {[%clk 0:02:55.6]}
8... Bxc3+ {[%clk 0:02:51]} 9. bxc3 {[%clk 0:02:55.3]} 9... Qc7 {[%clk
0:02:48.5]} 10. Bd3 {[%clk 0:02:54]} 10... b6 {[%clk 0:02:47]} 11. O-O {[%clk
0:02:51.5]} 11... Bb7 {[%clk 0:02:46.1]} 12. f3 {[%clk 0:02:51.3]} 12... e5
{[%clk 0:02:44.5]} 13. Bb2 {[%clk 0:02:45.4]} 13... Nc6 {[%clk 0:02:39.1]} 14.
Rc1 {[%clk 0:02:41.3]} 14... Qe7 {[%clk 0:02:37.6]} 15. e4 {[%clk 0:02:29.6]}
15... cxd4 {[%clk 0:02:30.2]} 16. cxd4 {[%clk 0:02:29.5]} 16... Nxd4 {[%clk
0:02:29.8]} 17. Nxd4 {[%clk 0:02:28.2]} 17... exd4 {[%clk 0:02:29.9]} 18. Qd2
{[%clk 0:02:26.5]} 18... Rac8 {[%clk 0:02:22.7]} 19. Rxc8 {[%clk 0:02:20.4]}
19... Rxc8 {[%clk 0:02:22.4]} 20. Rc1 {[%clk 0:02:21.3]} 20... Rxc1+ {[%clk
0:02:21.7]} 21. Qxc1 {[%clk 0:02:21.4]} 21... Qc5 {[%clk 0:02:19.6]} 22. Qf4
{[%clk 0:02:19.1]} 22... Nd7 {[%clk 0:02:04.7]} 23. Qd2 {[%clk 0:02:14.4]} 23...
Ne5 {[%clk 0:02:00.8]} 24. Kf2 {[%clk 0:01:58.8]} 24... h6 {[%clk 0:01:34.5]}
25. Kg3 {[%clk 0:01:58.8]} 25... Qd6 {[%clk 0:01:19.2]} 26. Kf2 {[%clk
0:01:58.5]} 26... Qc5 {[%clk 0:01:09]} 27. h4 {[%clk 0:01:51.9]} 27... Bc8
{[%clk 0:00:50.2]} 28. Kg3 {[%clk 0:01:28.2]} 28... Qd6 {[%clk 0:00:37.2]} 29.
Kf2 {[%clk 0:01:26.2]} 29... Qc5 {[%clk 0:00:32.2]} 30. Bf1 {[%clk 0:01:21]}
30... d3+ {[%clk 0:00:31.4]} 31. Kg3 {[%clk 0:01:04.1]} 31... Nc4 {[%clk
0:00:30.5]} 32. Qc3 {[%clk 0:00:56]} 32... Nxb2 {[%clk 0:00:28.7]} 33. Qxb2
{[%clk 0:00:56.9]} 33... Qc2 {[%clk 0:00:16.4]} 34. Qd4 {[%clk 0:00:46.7]} 34...
d2 {[%clk 0:00:15.2]} 35. Be2 {[%clk 0:00:39.6]} 35... Ba6 {[%clk 0:00:15.3]}
0-1

[Event "Early-Titled-Tuesday-Blitz-February-20-2024"]
[Site "Chess.com"]
[Date "2024.02.20"]
[Round "5"]
[White "traviscottofficial"]
[Black "tarno17"]
[Result "1-0"]
[WhiteElo "2744"]
[BlackElo "2145"]
[TimeControl "180+1"]
[EndTime "8:55:55 PST"]
[Termination "traviscottofficial won by resignation"]

1. c4 {[%clk 0:02:57.4]} 1... e5 {[%clk 0:02:58.2]} 2. Nc3 {[%clk 0:02:57.2]}
2... Nf6 {[%clk 0:02:57.1]} 3. Nf3 {[%clk 0:02:56.2]} 3... d6 {[%clk 0:02:44.9]}
4. g3 {[%clk 0:02:55]} 4... g6 {[%clk 0:02:45.1]} 5. Bg2 {[%clk 0:02:54.3]} 5...
Bg7 {[%clk 0:02:45.5]} 6. O-O {[%clk 0:02:55]} 6... O-O {[%clk 0:02:45.4]} 7. d3
{[%clk 0:02:55.6]} 7... Nc6 {[%clk 0:02:27.9]} 8. a3 {[%clk 0:02:55.6]} 8... Ne7
{[%clk 0:02:27.6]} 9. Qc2 {[%clk 0:02:53.9]} 9... c6 {[%clk 0:02:25.8]} 10. b4
{[%clk 0:02:49.8]} 10... h6 {[%clk 0:02:09.6]} 11. Bb2 {[%clk 0:02:49]} 11...
Be6 {[%clk 0:02:06.8]} 12. c5 {[%clk 0:02:38.5]} 12... Nh7 {[%clk 0:01:21.8]}
13. cxd6 {[%clk 0:02:34.2]} 13... Qxd6 {[%clk 0:01:21.8]} 14. Ne4 {[%clk
0:02:31]} 14... Qc7 {[%clk 0:01:19.2]} 15. Nc5 {[%clk 0:02:31.1]} 15... Bg4
{[%clk 0:01:12.4]} 16. h3 {[%clk 0:02:21.1]} 16... Bxf3 {[%clk 0:01:11.3]} 17.
Bxf3 {[%clk 0:02:22]} 17... Ng5 {[%clk 0:01:09.5]} 18. Bg2 {[%clk 0:02:22.4]}
18... Rac8 {[%clk 0:01:05.9]} 19. h4 {[%clk 0:02:20.4]} 19... Nh7 {[%clk
0:01:01.4]} 20. Rac1 {[%clk 0:02:19.7]} 20... Nf6 {[%clk 0:00:48.7]} 21. Qa4
{[%clk 0:02:01.9]} 21... a6 {[%clk 0:00:44.4]} 22. Qb3 {[%clk 0:01:59.6]} 22...
Nd7 {[%clk 0:00:36.3]} 23. Ne4 {[%clk 0:01:36.5]} 23... Nd5 {[%clk 0:00:26.4]}
24. Rc2 {[%clk 0:01:32.3]} 24... Kh7 {[%clk 0:00:26.6]} 25. Rfc1 {[%clk
0:01:32.3]} 25... f5 {[%clk 0:00:26.5]} 26. Qxd5 {[%clk 0:01:13.9]} 26... fxe4
{[%clk 0:00:26.6]} 27. Qxe4 {[%clk 0:01:10.4]} 27... Nf6 {[%clk 0:00:26.2]} 28.
Qc4 {[%clk 0:01:07.9]} 28... Qe7 {[%clk 0:00:20.1]} 29. Qc5 {[%clk 0:01:06.8]}
29... Qe6 {[%clk 0:00:17.2]} 30. Qxe5 {[%clk 0:01:06.3]} 30... Qf7 {[%clk
0:00:12.5]} 31. Qf4 {[%clk 0:00:56]} 31... Qe7 {[%clk 0:00:06.3]} 32. e4 {[%clk
0:00:48.9]} 32... Nh5 {[%clk 0:00:05.7]} 33. Qe3 {[%clk 0:00:46]} 33... Bxb2
{[%clk 0:00:05.5]} 34. Rxb2 {[%clk 0:00:46.9]} 34... Rf7 {[%clk 0:00:05.7]} 35.
Rf1 {[%clk 0:00:41.6]} 35... Rcf8 {[%clk 0:00:05]} 36. Rd2 {[%clk 0:00:39.6]}
36... Nf6 {[%clk 0:00:05.6]} 37. Bh3 {[%clk 0:00:38.4]} 37... h5 {[%clk
0:00:05.5]} 38. Kg2 {[%clk 0:00:37.5]} 38... Qe6 {[%clk 0:00:05.8]} 39. Bxe6
{[%clk 0:00:37.2]} 1-0

[Event "Early-Titled-Tuesday-Blitz-February-20-2024"]
[Site "Chess.com"]
[Date "2024.02.20"]
[Round "5"]
[White "Orest_Vovk"]
[Black "Beca95"]
[Result "0-1"]
[WhiteElo "2655"]
[BlackElo "2884"]
[TimeControl "180+1"]
[EndTime "8:56:00 PST"]
[Termination "Beca95 won on time"]

1. h4 {[%clk 0:02:56]} 1... d5 {[%clk 0:02:58.8]} 2. h5 {[%clk 0:02:55.9]} 2...
e5 {[%clk 0:02:58.8]} 3. h6 {[%clk 0:02:54.8]} 3... g6 {[%clk 0:02:58.1]} 4. d4
{[%clk 0:02:54]} 4... e4 {[%clk 0:02:56.3]} 5. c4 {[%clk 0:02:53.2]} 5... dxc4
{[%clk 0:02:50.2]} 6. Nc3 {[%clk 0:02:52.5]} 6... f5 {[%clk 0:02:50]} 7. Qa4+
{[%clk 0:02:50.7]} 7... c6 {[%clk 0:02:49.5]} 8. Qxc4 {[%clk 0:02:50.7]} 8... b5
{[%clk 0:02:49.5]} 9. Qb3 {[%clk 0:02:47.7]} 9... Na6 {[%clk 0:02:36.1]} 10. Bf4
{[%clk 0:02:40]} 10... Bd6 {[%clk 0:02:35]} 11. Bxd6 {[%clk 0:02:35]} 11... Qxd6
{[%clk 0:02:35.9]} 12. e3 {[%clk 0:02:35.3]} 12... Nf6 {[%clk 0:02:35.4]} 13. a3
{[%clk 0:02:29.6]} 13... Be6 {[%clk 0:02:34.8]} 14. Qc2 {[%clk 0:02:29.3]} 14...
Nc7 {[%clk 0:02:34.6]} 15. Nh3 {[%clk 0:02:28.5]} 15... O-O {[%clk 0:02:26]} 16.
Ng5 {[%clk 0:02:16.1]} 16... Bd5 {[%clk 0:02:22.6]} 17. g3 {[%clk 0:02:08.6]}
17... Rfc8 {[%clk 0:02:19.2]} 18. Nxd5 {[%clk 0:02:04.8]} 18... Ncxd5 {[%clk
0:02:18.8]} 19. Rc1 {[%clk 0:01:53.2]} 19... Nxe3 {[%clk 0:02:10]} 20. fxe3
{[%clk 0:01:14.7]} 20... Qxg3+ {[%clk 0:02:09.1]} 21. Kd2 {[%clk 0:01:12.8]}
21... Qxg5 {[%clk 0:02:09.1]} 22. Qb3+ {[%clk 0:01:12.8]} 22... Kf8 {[%clk
0:01:39.7]} 23. Qe6 {[%clk 0:00:58.4]} 23... Ng4 {[%clk 0:01:38.7]} 24. Rh3
{[%clk 0:00:46.3]} 24... Qf6 {[%clk 0:01:31.8]} 25. Qb3 {[%clk 0:00:24.3]} 25...
Qd6 {[%clk 0:01:31.6]} 26. Rc5 {[%clk 0:00:12.6]} 26... Nf6 {[%clk 0:01:31.5]}
27. Be2 {[%clk 0:00:08.9]} 27... a6 {[%clk 0:01:31.2]} 28. Rh1 {[%clk
0:00:08.7]} 28... Nd7 {[%clk 0:01:29.9]} 29. Rhc1 {[%clk 0:00:05.5]} 29... Nxc5
{[%clk 0:01:29.5]} 30. Rxc5 {[%clk 0:00:06.4]} 30... Rd8 {[%clk 0:01:28.2]} 31.
Kc2 {[%clk 0:00:06.6]} 31... Ra7 {[%clk 0:01:27.2]} 32. Qb4 {[%clk 0:00:06.7]}
32... a5 {[%clk 0:01:25.7]} 33. Qb3 {[%clk 0:00:06.7]} 33... Qf6 {[%clk
0:01:16.8]} 34. Qc3 {[%clk 0:00:06.2]} 34... Rd6 {[%clk 0:01:14.4]} 35. Kb1
{[%clk 0:00:06.2]} 35... Ke7 {[%clk 0:01:11.6]} 36. Re5+ {[%clk 0:00:06.1]}
36... Kd7 {[%clk 0:01:05.1]} 37. Qc5 {[%clk 0:00:07]} 37... Rb7 {[%clk
0:01:05.1]} 38. Bd1 {[%clk 0:00:03.7]} 38... a4 {[%clk 0:01:03.9]} 39. Be2
{[%clk 0:00:03.5]} 39... Qd8 {[%clk 0:00:46.5]} 40. Qc3 {[%clk 0:00:03.2]} 40...
Qb6 {[%clk 0:00:43.8]} 41. d5 {[%clk 0:00:03]} 41... cxd5 {[%clk 0:00:42.3]} 42.
Rxf5 {[%clk 0:00:02.4]} 42... d4 {[%clk 0:00:40.6]} 43. exd4 {[%clk 0:00:01.6]}
43... gxf5 {[%clk 0:00:40.3]} 0-1

[Event "Early-Titled-Tuesday-Blitz-February-20-2024"]
[Site "Chess.com"]
[Date "2024.02.20"]
[Round "5"]
[White "platy3"]
[Black "lamomiajunior"]
[Result "1-0"]
[WhiteElo "2960"]
[BlackElo "2726"]
[TimeControl "180+1"]
[EndTime "8:56:03 PST"]
[Termination "platy3 won by resignation"]

1. e4 {[%clk 0:03:00.9]} 1... c5 {[%clk 0:02:59.4]} 2. Nf3 {[%clk 0:03:00.7]}
2... d6 {[%clk 0:03:00.1]} 3. Bb5+ {[%clk 0:02:57.6]} 3... Bd7 {[%clk
0:03:00.1]} 4. Bxd7+ {[%clk 0:02:56.7]} 4... Qxd7 {[%clk 0:02:59.9]} 5. O-O
{[%clk 0:02:55.2]} 5... g6 {[%clk 0:03:00.5]} 6. c3 {[%clk 0:02:50.6]} 6... Nf6
{[%clk 0:02:59.7]} 7. Qe2 {[%clk 0:02:48.2]} 7... Bg7 {[%clk 0:02:57.4]} 8. d4
{[%clk 0:02:47.9]} 8... cxd4 {[%clk 0:02:57.6]} 9. cxd4 {[%clk 0:02:47.9]} 9...
O-O {[%clk 0:02:57.1]} 10. Nc3 {[%clk 0:02:47.7]} 10... Nc6 {[%clk 0:02:49.9]}
11. h3 {[%clk 0:02:47.4]} 11... Rac8 {[%clk 0:02:49.6]} 12. Rd1 {[%clk
0:02:44.7]} 12... d5 {[%clk 0:02:30.4]} 13. e5 {[%clk 0:02:41.8]} 13... Ne8
{[%clk 0:02:31.1]} 14. Bg5 {[%clk 0:02:31.8]} 14... Nc7 {[%clk 0:02:30.6]} 15.
Qe3 {[%clk 0:02:28.5]} 15... f6 {[%clk 0:02:20.5]} 16. exf6 {[%clk 0:01:53.3]}
16... exf6 {[%clk 0:02:19]} 17. Bh6 {[%clk 0:01:53.5]} 17... Rce8 {[%clk
0:02:17.5]} 18. Qd2 {[%clk 0:01:52.9]} 18... Bxh6 {[%clk 0:02:06.7]} 19. Qxh6
{[%clk 0:01:52.4]} 19... Re6 {[%clk 0:02:05.7]} 20. h4 {[%clk 0:01:46.2]} 20...
Rfe8 {[%clk 0:02:01.2]} 21. Qf4 {[%clk 0:01:45.5]} 21... Kg7 {[%clk 0:01:58.5]}
22. Rac1 {[%clk 0:01:37.2]} 22... h6 {[%clk 0:01:44.1]} 23. Qg3 {[%clk
0:01:31.7]} 23... f5 {[%clk 0:01:41.3]} 24. b4 {[%clk 0:01:00.8]} 24... Nxb4
{[%clk 0:01:15.4]} 25. Ne2 {[%clk 0:01:00.4]} 25... Nc6 {[%clk 0:01:10.5]} 26.
Nf4 {[%clk 0:01:00.2]} 26... Rd6 {[%clk 0:01:09.8]} 27. Ne5 {[%clk 0:00:54.5]}
27... Qd8 {[%clk 0:00:37.3]} 28. Nfxg6 {[%clk 0:00:48.4]} 28... Nxe5 {[%clk
0:00:34.1]} 29. Nxe5+ {[%clk 0:00:44.9]} 29... Kf8 {[%clk 0:00:25.5]} 30. Qf4
{[%clk 0:00:43.9]} 30... Ree6 {[%clk 0:00:10.2]} 31. Qxf5+ {[%clk 0:00:36.9]}
31... Rf6 {[%clk 0:00:10.4]} 32. Qh7 {[%clk 0:00:36.2]} 32... Ne8 {[%clk
0:00:11.3]} 33. Qh8+ {[%clk 0:00:19.3]} 33... Ke7 {[%clk 0:00:08.7]} 34. Re1
{[%clk 0:00:19.5]} 34... Rde6 {[%clk 0:00:08.4]} 35. Qh7+ {[%clk 0:00:16.5]}
35... Kf8 {[%clk 0:00:07.7]} 36. Nd7+ {[%clk 0:00:16]} 1-0

[Event "Early-Titled-Tuesday-Blitz-February-20-2024"]
[Site "Chess.com"]
[Date "2024.02.20"]
[Round "5"]
[White "CSB7"]
[Black "aistrel"]
[Result "1-0"]
[WhiteElo "2770"]
[BlackElo "2524"]
[TimeControl "180+1"]
[EndTime "8:56:03 PST"]
[Termination "CSB7 won by resignation"]

1. d4 {[%clk 0:03:00.9]} 1... d5 {[%clk 0:02:55.5]} 2. c4 {[%clk 0:02:59.3]}
2... e6 {[%clk 0:02:51.3]} 3. Nf3 {[%clk 0:02:57.6]} 3... c6 {[%clk 0:02:51.2]}
4. g3 {[%clk 0:02:58.3]} 4... dxc4 {[%clk 0:02:50.7]} 5. Bg2 {[%clk 0:02:58.4]}
5... Nd7 {[%clk 0:02:51.3]} 6. O-O {[%clk 0:02:55.2]} 6... b5 {[%clk 0:02:51.7]}
7. Nc3 {[%clk 0:02:52]} 7... Bb7 {[%clk 0:02:52.2]} 8. Ne5 {[%clk 0:02:52]} 8...
Nxe5 {[%clk 0:02:52.4]} 9. dxe5 {[%clk 0:02:52.9]} 9... Qxd1 {[%clk 0:02:51.4]}
10. Rxd1 {[%clk 0:02:51.2]} 10... Rb8 {[%clk 0:02:29.8]} 11. Be3 {[%clk
0:02:36.5]} 11... a6 {[%clk 0:02:19.8]} 12. a4 {[%clk 0:02:03.9]} 12... Bb4
{[%clk 0:02:04.8]} 13. axb5 {[%clk 0:01:37.2]} 13... axb5 {[%clk 0:02:05.7]} 14.
Ne4 {[%clk 0:01:33]} 14... Ne7 {[%clk 0:01:55.7]} 15. Bc5 {[%clk 0:01:13.8]}
15... Bxc5 {[%clk 0:01:55.5]} 16. Nxc5 {[%clk 0:01:14.7]} 16... Nd5 {[%clk
0:01:48.3]} 17. Nxb7 {[%clk 0:01:10.5]} 17... O-O {[%clk 0:01:43.1]} 18. Nd6
{[%clk 0:00:55.3]} 18... f5 {[%clk 0:01:41.9]} 19. exf6 {[%clk 0:00:47.3]} 19...
gxf6 {[%clk 0:01:40.4]} 20. Ne4 {[%clk 0:00:43.5]} 20... Kf7 {[%clk 0:01:38.4]}
21. Ra7+ {[%clk 0:00:40.2]} 21... Kg6 {[%clk 0:01:38.8]} 22. Nc5 {[%clk
0:00:39.1]} 22... Rfe8 {[%clk 0:01:36.6]} 23. Rda1 {[%clk 0:00:31.4]} 23... h5
{[%clk 0:01:30.2]} 24. Ne4 {[%clk 0:00:17.2]} 24... f5 {[%clk 0:01:23.5]} 25.
Nc3 {[%clk 0:00:15.3]} 25... b4 {[%clk 0:01:24]} 26. Nxd5 {[%clk 0:00:14.8]}
26... cxd5 {[%clk 0:01:19.5]} 27. Rc7 {[%clk 0:00:08.3]} 27... Rec8 {[%clk
0:01:18.3]} 28. Rxc8 {[%clk 0:00:07.5]} 28... Rxc8 {[%clk 0:01:19.2]} 29. e3
{[%clk 0:00:07.7]} 29... Kf6 {[%clk 0:01:15.5]} 30. Kf1 {[%clk 0:00:08]} 30...
Ke5 {[%clk 0:01:16.1]} 31. Ke2 {[%clk 0:00:08.6]} 31... Kd6 {[%clk 0:01:16.9]}
32. Kd2 {[%clk 0:00:08.3]} 32... e5 {[%clk 0:01:17.3]} 33. Ra6+ {[%clk
0:00:06.5]} 33... Kc5 {[%clk 0:01:17.2]} 34. Ra5+ {[%clk 0:00:06.8]} 34... Kb6
{[%clk 0:01:16.4]} 35. Rxd5 {[%clk 0:00:07.7]} 35... c3+ {[%clk 0:01:16.5]} 36.
bxc3 {[%clk 0:00:08.4]} 36... bxc3+ {[%clk 0:01:17.4]} 37. Kc2 {[%clk
0:00:08.7]} 37... e4 {[%clk 0:01:18.3]} 38. Rxf5 {[%clk 0:00:08.2]} 38... Rd8
{[%clk 0:01:19.2]} 39. Kxc3 {[%clk 0:00:07.1]} 39... Rd1 {[%clk 0:01:18.9]} 40.
Bxe4 {[%clk 0:00:06.6]} 40... Rf1 {[%clk 0:01:19.4]} 41. h4 {[%clk 0:00:06.2]}
41... Kc7 {[%clk 0:01:19.2]} 42. Rf4 {[%clk 0:00:06.7]} 42... Kd6 {[%clk
0:01:19.6]} 43. Bg6 {[%clk 0:00:07.3]} 43... Ke5 {[%clk 0:01:20.5]} 44. Bxh5
{[%clk 0:00:07.5]} 44... Rc1+ {[%clk 0:01:19.9]} 45. Kd2 {[%clk 0:00:07.3]}
45... Rc8 {[%clk 0:01:20.8]} 46. Bd1 {[%clk 0:00:07.3]} 46... Ra8 {[%clk
0:01:21.3]} 47. Ke1 {[%clk 0:00:07.8]} 47... Rd8 {[%clk 0:01:21.6]} 48. Be2
{[%clk 0:00:07.2]} 48... Rc8 {[%clk 0:01:22.5]} 49. Kf1 {[%clk 0:00:07.7]} 49...
Rc1+ {[%clk 0:01:23]} 50. Kg2 {[%clk 0:00:07.6]} 50... Rc2 {[%clk 0:01:23.9]}
51. Bf3 {[%clk 0:00:08.1]} 51... Rb2 {[%clk 0:01:24.8]} 52. h5 {[%clk
0:00:08.5]} 52... Rb7 {[%clk 0:01:25]} 53. g4 {[%clk 0:00:08.9]} 53... Ra7
{[%clk 0:01:21.5]} 54. Rf5+ {[%clk 0:00:09.3]} 54... Ke6 {[%clk 0:01:21.2]} 55.
Bd5+ {[%clk 0:00:09]} 55... Kd6 {[%clk 0:01:20.7]} 56. e4 {[%clk 0:00:09.6]}
56... Ra1 {[%clk 0:01:21.5]} 57. f3 {[%clk 0:00:09.5]} 57... Re1 {[%clk
0:01:20.7]} 58. Kg3 {[%clk 0:00:09.8]} 58... Rd1 {[%clk 0:01:19.6]} 59. Kf4
{[%clk 0:00:10.4]} 59... Rb1 {[%clk 0:01:20.5]} 60. Kg5 {[%clk 0:00:10.8]} 60...
Rb8 {[%clk 0:01:20.7]} 61. Rf6+ {[%clk 0:00:10.7]} 61... Ke5 {[%clk 0:01:20.5]}
62. f4+ {[%clk 0:00:11]} 62... Kd4 {[%clk 0:01:21.4]} 63. h6 {[%clk 0:00:11.2]}
63... Rb1 {[%clk 0:01:20]} 64. h7 {[%clk 0:00:11]} 64... Rh1 {[%clk 0:01:20.5]}
65. Rh6 {[%clk 0:00:11.5]} 65... Rxh6 {[%clk 0:01:20.6]} 66. Kxh6 {[%clk
0:00:12.4]} 66... Ke3 {[%clk 0:01:20.9]} 67. Kg5 {[%clk 0:00:11.8]} 1-0

[Event "Early-Titled-Tuesday-Blitz-February-20-2024"]
[Site "Chess.com"]
[Date "2024.02.20"]
[Round "5"]
[White "TemploVillamarin"]
[Black "N4700000"]
[Result "1/2-1/2"]
[WhiteElo "2302"]
[BlackElo "2461"]
[TimeControl "180+1"]
[EndTime "8:56:03 PST"]
[Termination "Game drawn by agreement"]

1. d4 {[%clk 0:02:59.1]} 1... Nf6 {[%clk 0:02:58]} 2. Nc3 {[%clk 0:02:58.7]}
2... d5 {[%clk 0:02:57]} 3. e4 {[%clk 0:02:59.1]} 3... dxe4 {[%clk 0:02:49.3]}
4. f3 {[%clk 0:02:57.5]} 4... Bf5 {[%clk 0:02:44.8]} 5. g4 {[%clk 0:02:56.6]}
5... Bg6 {[%clk 0:02:41.3]} 6. g5 {[%clk 0:02:34.5]} 6... Nd5 {[%clk 0:02:17.8]}
7. Nxe4 {[%clk 0:02:33.1]} 7... Nc6 {[%clk 0:02:10]} 8. c3 {[%clk 0:02:28.5]}
8... e5 {[%clk 0:02:08.3]} 9. Bb5 {[%clk 0:02:22.6]} 9... Be7 {[%clk 0:01:39.2]}
10. dxe5 {[%clk 0:02:18.2]} 10... O-O {[%clk 0:01:36.7]} 11. Bxc6 {[%clk
0:02:15.6]} 11... bxc6 {[%clk 0:01:37.6]} 12. h4 {[%clk 0:02:08.7]} 12... Bxe4
{[%clk 0:01:16.9]} 13. fxe4 {[%clk 0:02:08]} 13... Nb6 {[%clk 0:01:17]} 14. Qxd8
{[%clk 0:02:06.6]} 14... Rfxd8 {[%clk 0:01:12.8]} 15. Ne2 {[%clk 0:02:06]} 15...
Nc4 {[%clk 0:01:11.8]} 16. O-O {[%clk 0:01:57.3]} 16... Nxe5 {[%clk 0:01:06.3]}
17. Nd4 {[%clk 0:01:57]} 17... Bc5 {[%clk 0:01:01.1]} 18. Be3 {[%clk 0:01:47.6]}
18... Ng4 {[%clk 0:01:00.2]} 19. Bf4 {[%clk 0:01:37.8]} 19... Bxd4+ {[%clk
0:00:48.8]} 20. cxd4 {[%clk 0:01:38.7]} 20... Rxd4 {[%clk 0:00:48.8]} 21. Rac1
{[%clk 0:01:38.7]} 21... Rxe4 {[%clk 0:00:38]} 22. Rxc6 {[%clk 0:01:38.3]} 22...
f5 {[%clk 0:00:20.5]} 23. gxf6 {[%clk 0:01:16.7]} 23... Nxf6 {[%clk 0:00:19.5]}
24. Bg5 {[%clk 0:01:04.6]} 24... Nd5 {[%clk 0:00:17]} 25. Rd1 {[%clk 0:00:59.9]}
25... Ne3 {[%clk 0:00:12.5]} 26. Re1 {[%clk 0:00:52.4]} 26... Rae8 {[%clk
0:00:11.3]} 27. Rxc7 {[%clk 0:00:45.6]} 27... a5 {[%clk 0:00:10.5]} 28. b3
{[%clk 0:00:40.5]} 28... a4 {[%clk 0:00:09.3]} 29. bxa4 {[%clk 0:00:40.2]} 29...
h6 {[%clk 0:00:07.5]} 30. Bxe3 {[%clk 0:00:37.3]} 30... Rxe3 {[%clk 0:00:08.4]}
31. Rxe3 {[%clk 0:00:37]} 31... Rxe3 {[%clk 0:00:09.3]} 32. a5 {[%clk 0:00:35]}
32... Ra3 {[%clk 0:00:09.2]} 33. Ra7 {[%clk 0:00:32.9]} 33... Rxa2 {[%clk
0:00:09.5]} 34. a6 {[%clk 0:00:33.5]} 34... h5 {[%clk 0:00:09.2]} 35. Ra8+
{[%clk 0:00:32.3]} 35... Kh7 {[%clk 0:00:09.4]} 36. a7 {[%clk 0:00:32.9]} 36...
Kg6 {[%clk 0:00:09.6]} 37. Kh1 {[%clk 0:00:32.1]} 37... Kh7 {[%clk 0:00:09.5]}
38. Kg1 {[%clk 0:00:32.1]} 38... Kg6 {[%clk 0:00:09.6]} 1/2-1/2

[Event "Early-Titled-Tuesday-Blitz-February-20-2024"]
[Site "Chess.com"]
[Date "2024.02.20"]
[Round "5"]
[White "Mikasinski"]
[Black "DuleMudule"]
[Result "0-1"]
[WhiteElo "2632"]
[BlackElo "2853"]
[TimeControl "180+1"]
[EndTime "8:56:09 PST"]
[Termination "DuleMudule won by resignation"]

1. e4 {[%clk 0:03:00.9]} 1... c5 {[%clk 0:02:59.5]} 2. Nf3 {[%clk 0:03:00.5]}
2... Nc6 {[%clk 0:02:59.6]} 3. d4 {[%clk 0:03:00.7]} 3... cxd4 {[%clk
0:03:00.5]} 4. Nxd4 {[%clk 0:03:00.9]} 4... Qc7 {[%clk 0:03:01.1]} 5. Nc3 {[%clk
0:03:00.7]} 5... e6 {[%clk 0:03:01.6]} 6. Be2 {[%clk 0:03:00.8]} 6... a6 {[%clk
0:03:02.2]} 7. O-O {[%clk 0:03:00.8]} 7... Nf6 {[%clk 0:03:02.8]} 8. Be3 {[%clk
0:03:00.6]} 8... Bb4 {[%clk 0:03:03.1]} 9. Na4 {[%clk 0:03:00.3]} 9... Be7
{[%clk 0:03:03.1]} 10. Nxc6 {[%clk 0:02:58]} 10... bxc6 {[%clk 0:03:04]} 11. Nb6
{[%clk 0:02:58.6]} 11... Rb8 {[%clk 0:03:03.9]} 12. Nxc8 {[%clk 0:02:59.5]}
12... Qxc8 {[%clk 0:03:04.4]} 13. e5 {[%clk 0:02:59.5]} 13... Nd5 {[%clk
0:03:04.1]} 14. Bc1 {[%clk 0:02:38.7]} 14... Bc5 {[%clk 0:03:02.2]} 15. c4
{[%clk 0:02:34.4]} 15... Ne7 {[%clk 0:03:01.5]} 16. a3 {[%clk 0:02:32.5]} 16...
a5 {[%clk 0:02:54.7]} 17. Rb1 {[%clk 0:02:30.2]} 17... Qc7 {[%clk 0:02:50.4]}
18. Bf4 {[%clk 0:02:20.5]} 18... Ng6 {[%clk 0:02:49.7]} 19. Bg3 {[%clk
0:02:20.9]} 19... Nxe5 {[%clk 0:02:34.2]} 20. Qc2 {[%clk 0:02:19.3]} 20... O-O
{[%clk 0:02:27]} 21. Rfd1 {[%clk 0:02:16.4]} 21... d6 {[%clk 0:02:24.6]} 22. h4
{[%clk 0:02:12.5]} 22... f5 {[%clk 0:02:19.9]} 23. Qd2 {[%clk 0:01:45.1]} 23...
a4 {[%clk 0:02:11.5]} 24. Re1 {[%clk 0:01:42.5]} 24... Rb3 {[%clk 0:02:07.6]}
25. Bxe5 {[%clk 0:01:39.7]} 25... dxe5 {[%clk 0:02:06.7]} 26. Bd1 {[%clk
0:01:37.2]} 26... Rg3 {[%clk 0:01:59.5]} 27. Kh2 {[%clk 0:01:31.7]} 27... Rg6
{[%clk 0:01:55.2]} 28. Bxa4 {[%clk 0:01:26.8]} 28... e4+ {[%clk 0:01:51.7]} 29.
Kh1 {[%clk 0:01:22.6]} 29... Rh6 {[%clk 0:01:41.3]} 30. g3 {[%clk 0:01:20]}
30... e3 {[%clk 0:01:35.6]} 31. Rxe3 {[%clk 0:01:15]} 31... Bxe3 {[%clk
0:01:35.4]} 32. Qxe3 {[%clk 0:01:15]} 32... f4 {[%clk 0:01:36]} 33. Qc3 {[%clk
0:01:06]} 33... Qa7 {[%clk 0:01:28.7]} 34. Bxc6 {[%clk 0:00:56.4]} 34... Qxf2
{[%clk 0:01:28.5]} 35. Rg1 {[%clk 0:00:49.5]} 35... f3 {[%clk 0:01:19]} 36. Qe1
{[%clk 0:00:30.6]} 36... Qxb2 {[%clk 0:00:59.4]} 37. Qe3 {[%clk 0:00:21.3]}
37... Qe2 {[%clk 0:00:56.4]} 38. Qc1 {[%clk 0:00:06.3]} 38... Rg6 {[%clk
0:00:34.8]} 39. Qf1 {[%clk 0:00:06.1]} 39... Rxg3 {[%clk 0:00:29.5]} 40. Qxe2
{[%clk 0:00:02.4]} 40... fxe2 {[%clk 0:00:30.4]} 41. Re1 {[%clk 0:00:01.5]}
41... Rf1+ {[%clk 0:00:29.3]} 42. Kh2 {[%clk 0:00:02.1]} 42... Rxe1 {[%clk
0:00:29.9]} 43. Kxg3 {[%clk 0:00:03]} 43... Rg1+ {[%clk 0:00:30.4]} 0-1